[Event "Live Chess"]
[Site "Chess.com"]
[Date "2023.05.20"]
[Round "-"]
[White "PureMellowPlan"]
[Black "Leonid_Starozhilov"]
[Result "0-1"]
[WhiteElo "629"]
[BlackElo "2666"]
[TimeControl "300"]
[EndTime "10:00:48 PDT"]
[Termination "Leonid_Starozhilov won by checkmate"]

1. e4 {[%clk 0:04:54.5]} 1... e5 {[%clk 0:04:58.8]} 2. Nf3 {[%clk 0:04:51.9]}
2... Nc6 {[%clk 0:04:58.7]} 3. Nc3 {[%clk 0:04:50.3]} 3... Nf6 {[%clk
0:04:58.1]} 4. Bb5 {[%clk 0:04:49]} 4... Nd4 {[%clk 0:04:55.2]} 5. Nxd4 {[%clk
0:04:45.5]} 5... exd4 {[%clk 0:04:54.2]} 6. e5 {[%clk 0:04:34.2]} 6... dxc3
{[%clk 0:04:47.2]} 7. exf6 {[%clk 0:04:32.1]} 7... Qxf6 {[%clk 0:04:41.1]} 8.
bxc3 {[%clk 0:04:26.1]} 8... c6 {[%clk 0:04:35.9]} 9. Bd3 {[%clk 0:04:23.2]}
9... Bc5 {[%clk 0:04:30]} 10. O-O {[%clk 0:04:20.2]} 10... d5 {[%clk 0:04:26.2]}
11. Re1+ {[%clk 0:04:13.8]} 11... Be6 {[%clk 0:04:24.2]} 12. Qg4 {[%clk
0:04:03.1]} 12... Qxf2+ {[%clk 0:04:20.9]} 13. Kh1 {[%clk 0:03:54.2]} 13...
Qxe1+ {[%clk 0:04:20.8]} 14. Bf1 {[%clk 0:03:51.3]} 14... Qxf1# {[%clk
0:04:20.7]} 0-1

[Event "Live Chess"]
[Site "Chess.com"]
[Date "2023.05.20"]
[Round "-"]
[White "JohanKjeldahl"]
[Black "apl_trainer"]
[Result "0-1"]
[WhiteElo "1761"]
[BlackElo "1605"]
[TimeControl "300"]
[EndTime "10:00:49 PDT"]
[Termination "apl_trainer won by resignation"]

1. e4 {[%clk 0:04:58.2]} 1... c5 {[%clk 0:04:58.6]} 2. Nf3 {[%clk 0:04:56.6]}
2... e6 {[%clk 0:04:56.9]} 3. d4 {[%clk 0:04:55.6]} 3... cxd4 {[%clk 0:04:55.7]}
4. Nxd4 {[%clk 0:04:55.2]} 4... Nc6 {[%clk 0:04:54.5]} 5. Nc3 {[%clk 0:04:52.9]}
5... Qc7 {[%clk 0:04:53.3]} 6. Be3 {[%clk 0:04:51.7]} 6... a6 {[%clk 0:04:51.6]}
7. f3 {[%clk 0:04:49.2]} 7... Nf6 {[%clk 0:04:47.5]} 8. Be2 {[%clk 0:04:47.6]}
8... Be7 {[%clk 0:04:45]} 9. O-O {[%clk 0:04:46.9]} 9... b5 {[%clk 0:04:39.3]}
10. a3 {[%clk 0:04:45]} 10... Bb7 {[%clk 0:04:37.6]} 11. Qd2 {[%clk 0:04:43.6]}
11... O-O {[%clk 0:04:32.8]} 12. Rad1 {[%clk 0:04:41.7]} 12... Ne5 {[%clk
0:04:16]} 13. Bf4 {[%clk 0:04:31.2]} 13... d6 {[%clk 0:04:10.8]} 14. g4 {[%clk
0:04:18.8]} 14... h6 {[%clk 0:03:57.8]} 15. g5 {[%clk 0:04:14.2]} 15... hxg5
{[%clk 0:03:52.2]} 16. Bxg5 {[%clk 0:04:13.1]} 16... Rac8 {[%clk 0:03:39.3]} 17.
Kh1 {[%clk 0:04:08.1]} 17... d5 {[%clk 0:03:25.3]} 18. Rg1 {[%clk 0:03:56.8]}
18... dxe4 {[%clk 0:03:16.3]} 19. fxe4 {[%clk 0:03:53.4]} 19... Nxe4 {[%clk
0:03:05.5]} 20. Nxe4 {[%clk 0:03:50.1]} 20... Bxe4+ {[%clk 0:03:04]} 21. Rg2
{[%clk 0:03:44.8]} 21... Bxg2+ {[%clk 0:02:40.7]} 22. Kxg2 {[%clk 0:03:43.4]}
22... Bxg5 {[%clk 0:02:34.4]} 23. Qxg5 {[%clk 0:03:41.2]} 23... Ng6 {[%clk
0:02:29.7]} 24. Bd3 {[%clk 0:03:28.7]} 24... Nf4+ {[%clk 0:02:13.6]} 25. Kf3
{[%clk 0:03:25.5]} 25... Nxd3 {[%clk 0:02:11.6]} 26. Rxd3 {[%clk 0:03:24.3]}
26... Qb7+ {[%clk 0:01:59.6]} 27. Kg3 {[%clk 0:03:21.9]} 27... Qd5 {[%clk
0:01:56.7]} 28. Qxd5 {[%clk 0:03:17]} 28... exd5 {[%clk 0:01:55.4]} 29. c3
{[%clk 0:03:16.2]} 29... Rfe8 {[%clk 0:01:50.3]} 30. Nf5 {[%clk 0:03:11.7]}
30... Re2 {[%clk 0:01:44.2]} 31. Rxd5 {[%clk 0:03:09.4]} 31... Rce8 {[%clk
0:01:38]} 32. Rd7 {[%clk 0:03:00.4]} 32... Rxb2 {[%clk 0:01:33.8]} 33. Nd6
{[%clk 0:02:55.6]} 33... Ree2 {[%clk 0:01:22.6]} 34. Rxf7 {[%clk 0:02:50.6]}
34... Rg2+ {[%clk 0:01:21]} 35. Kh3 {[%clk 0:02:49.4]} 35... Rxh2+ {[%clk
0:01:19.3]} 36. Kg3 {[%clk 0:02:48.3]} 36... Rbg2+ {[%clk 0:01:17.9]} 37. Kf3
{[%clk 0:02:47.1]} 37... Rf2+ {[%clk 0:01:15.9]} 38. Kg3 {[%clk 0:02:46.1]}
38... Rxf7 {[%clk 0:01:14.2]} 39. Kxh2 {[%clk 0:02:45.3]} 39... Rf3 {[%clk
0:01:10.7]} 40. c4 {[%clk 0:02:38.1]} 40... bxc4 {[%clk 0:01:07.1]} 41. Nxc4
{[%clk 0:02:35.3]} 41... Rc3 {[%clk 0:01:05.4]} 42. Nd6 {[%clk 0:02:29.5]} 42...
Rxa3 {[%clk 0:01:03.4]} 43. Kg2 {[%clk 0:02:28.5]} 43... Rd3 {[%clk 0:01:00]}
44. Nc4 {[%clk 0:02:25.7]} 44... Rc3 {[%clk 0:00:58.5]} 45. Ne5 {[%clk
0:02:20.8]} 45... a5 {[%clk 0:00:56.8]} 46. Kf2 {[%clk 0:02:16.5]} 46... a4
{[%clk 0:00:55]} 0-1

[Event "Live Chess"]
[Site "Chess.com"]
[Date "2023.05.20"]
[Round "-"]
[White "seasidecastle27"]
[Black "Balu13"]
[Result "1-0"]
[WhiteElo "1802"]
[BlackElo "838"]
[TimeControl "300"]
[EndTime "10:00:50 PDT"]
[Termination "seasidecastle27 won on time"]

1. d4 {[%clk 0:04:57.8]} 1... d5 {[%clk 0:04:53.7]} 2. Nf3 {[%clk 0:04:56.5]}
2... Nf6 {[%clk 0:04:50.7]} 3. Bf4 {[%clk 0:04:55.3]} 3... Bf5 {[%clk
0:04:49.1]} 4. e3 {[%clk 0:04:54.4]} 4... Nc6 {[%clk 0:04:46.6]} 5. Bd3 {[%clk
0:04:52.6]} 5... Be4 {[%clk 0:04:37.2]} 6. Bxe4 {[%clk 0:04:43.7]} 6... Nxe4
{[%clk 0:04:33.7]} 7. Nbd2 {[%clk 0:04:41.8]} 7... e6 {[%clk 0:04:30.4]} 8. Nxe4
{[%clk 0:04:39.2]} 8... dxe4 {[%clk 0:04:27.6]} 9. Nd2 {[%clk 0:04:38]} 9... f5
{[%clk 0:04:25.1]} 10. Qe2 {[%clk 0:04:35.7]} 10... a6 {[%clk 0:04:22.5]} 11.
Qc4 {[%clk 0:04:32.6]} 11... Qd5 {[%clk 0:04:19.2]} 12. O-O {[%clk 0:04:29.2]}
12... b5 {[%clk 0:04:11.1]} 13. Qxd5 {[%clk 0:04:26.8]} 13... exd5 {[%clk
0:04:07.5]} 14. Bxc7 {[%clk 0:04:25.2]} 14... Ra7 {[%clk 0:03:41.4]} 15. Bg3
{[%clk 0:04:19]} 15... Nb4 {[%clk 0:03:35.8]} 16. Rfc1 {[%clk 0:04:12.1]} 16...
g5 {[%clk 0:03:26.2]} 17. a3 {[%clk 0:04:09]} 17... Nc6 {[%clk 0:03:18.7]} 18.
c3 {[%clk 0:04:05.9]} 18... h5 {[%clk 0:03:10.6]} 19. h4 {[%clk 0:04:01.5]}
19... Be7 {[%clk 0:02:58.6]} 20. hxg5 {[%clk 0:03:56.3]} 20... Bxg5 {[%clk
0:02:57.6]} 21. Kf1 {[%clk 0:03:51.3]} 21... Rc7 {[%clk 0:02:33.1]} 22. Bxc7
{[%clk 0:03:48.8]} 22... h4 {[%clk 0:01:55.4]} 23. Ke2 {[%clk 0:03:15.6]} 23...
Kd7 {[%clk 0:01:41.8]} 24. Be5 {[%clk 0:03:12.1]} 24... Rg8 {[%clk 0:01:34.9]}
25. Rh1 {[%clk 0:03:09.1]} 25... Nxe5 {[%clk 0:01:26]} 26. dxe5 {[%clk
0:03:06.4]} 26... Ke6 {[%clk 0:01:25.9]} 27. Nb3 {[%clk 0:03:03.5]} 27... Rc8
{[%clk 0:01:10]} 28. Nd4+ {[%clk 0:02:59.8]} 28... Kxe5 {[%clk 0:01:07.7]} 29.
Rh2 {[%clk 0:02:54.1]} 29... f4 {[%clk 0:01:00.8]} 30. exf4+ {[%clk 0:02:50.5]}
30... Bxf4 {[%clk 0:00:58.6]} 31. Rxh4 {[%clk 0:02:48.4]} 31... Bg5 {[%clk
0:00:41.8]} 32. Rh5 {[%clk 0:02:45.5]} 32... Rg8 {[%clk 0:00:38.8]} 33. Rah1
{[%clk 0:02:37]} 33... Kf6 {[%clk 0:00:28]} 34. g3 {[%clk 0:02:35.2]} 34... Rg6
{[%clk 0:00:16.8]} 35. Rh8 {[%clk 0:02:28.3]} 35... Kg7 {[%clk 0:00:08.2]} 36.
R1h7+ {[%clk 0:02:24.5]} 36... Kf6 {[%clk 0:00:07.1]} 37. Rf8+ {[%clk
0:02:22.7]} 37... Ke5 {[%clk 0:00:01.9]} 38. Rf5+ {[%clk 0:02:19]} 1-0

[Event "Live Chess"]
[Site "Chess.com"]
[Date "2023.05.20"]
[Round "-"]
[White "Bob2pen"]
[Black "HoarseyHorsey"]
[Result "1-0"]
[WhiteElo "1776"]
[BlackElo "1386"]
[TimeControl "300"]
[EndTime "10:00:59 PDT"]
[Termination "Bob2pen won by resignation"]

1. c4 {[%clk 0:04:58]} 1... Nf6 {[%clk 0:04:58.2]} 2. g3 {[%clk 0:04:56.7]} 2...
d5 {[%clk 0:04:56.7]} 3. Bg2 {[%clk 0:04:55.5]} 3... e6 {[%clk 0:04:55.4]} 4.
Nf3 {[%clk 0:04:54.1]} 4... Bc5 {[%clk 0:04:52.3]} 5. O-O {[%clk 0:04:51.9]}
5... O-O {[%clk 0:04:50.2]} 6. d4 {[%clk 0:04:47.1]} 6... Be7 {[%clk 0:04:46.9]}
7. Nc3 {[%clk 0:04:45]} 7... dxc4 {[%clk 0:04:45.5]} 8. Ne5 {[%clk 0:04:39.9]}
8... Nd5 {[%clk 0:04:34.7]} 9. Nxc4 {[%clk 0:04:23.1]} 9... Nc6 {[%clk 0:04:31]}
10. Nxd5 {[%clk 0:04:17.8]} 10... exd5 {[%clk 0:04:29.2]} 11. Ne3 {[%clk
0:04:16.3]} 11... Be6 {[%clk 0:04:27]} 12. b3 {[%clk 0:04:06]} 12... Bf6 {[%clk
0:04:24]} 13. Bb2 {[%clk 0:04:04.4]} 13... Qd7 {[%clk 0:04:19.1]} 14. Qd2 {[%clk
0:04:02.8]} 14... Rad8 {[%clk 0:04:16.3]} 15. Rac1 {[%clk 0:04:00.8]} 15... Bg5
{[%clk 0:04:09.4]} 16. h4 {[%clk 0:03:57.9]} 16... Bh6 {[%clk 0:04:06.8]} 17.
Rcd1 {[%clk 0:03:35.8]} 17... f5 {[%clk 0:03:39.2]} 18. Qc2 {[%clk 0:03:20.7]}
18... Bxe3 {[%clk 0:03:36.1]} 19. fxe3 {[%clk 0:03:19.2]} 19... Rde8 {[%clk
0:02:51.7]} 20. Kh2 {[%clk 0:03:16.2]} 20... Ne7 {[%clk 0:02:46.4]} 21. Rc1
{[%clk 0:03:13.1]} 21... Kh8 {[%clk 0:02:39.6]} 22. Qxc7 {[%clk 0:03:11]} 22...
Qxc7 {[%clk 0:02:39]} 23. Rxc7 {[%clk 0:03:09.3]} 23... Ng8 {[%clk 0:02:22.7]}
24. Rxb7 {[%clk 0:03:03]} 24... Nf6 {[%clk 0:02:21.9]} 25. Bf3 {[%clk 0:03:00]}
25... Ne4 {[%clk 0:02:13.7]} 26. Bxe4 {[%clk 0:02:58.3]} 26... fxe4 {[%clk
0:02:11.5]} 27. Rxf8+ {[%clk 0:02:55.8]} 27... Rxf8 {[%clk 0:02:11.4]} 28. Kg2
{[%clk 0:02:48.5]} 28... h6 {[%clk 0:02:08.5]} 29. Rxa7 {[%clk 0:02:46.7]} 29...
Bg4 {[%clk 0:02:07.1]} 30. Ba3 {[%clk 0:02:38.8]} 30... Rf5 {[%clk 0:02:02.2]}
31. Bd6 {[%clk 0:02:35.2]} 31... Bxe2 {[%clk 0:02:00.8]} 32. Be5 {[%clk
0:02:34]} 32... Bd3 {[%clk 0:01:50.7]} 33. Bxg7+ {[%clk 0:02:26.3]} 33... Kg8
{[%clk 0:01:49.8]} 34. Bxh6 {[%clk 0:02:22.8]} 34... Rf6 {[%clk 0:01:44.7]} 35.
Bf4 {[%clk 0:02:21]} 35... Rc6 {[%clk 0:01:39.1]} 36. h5 {[%clk 0:02:19]} 36...
Be2 {[%clk 0:01:30.5]} 37. h6 {[%clk 0:02:16.3]} 37... Bg4 {[%clk 0:01:20.9]}
38. Rg7+ {[%clk 0:02:12.7]} 1-0

[Event "Live Chess"]
[Site "Chess.com"]
[Date "2023.05.20"]
[Round "-"]
[White "tpm07"]
[Black "Albul"]
[Result "0-1"]
[WhiteElo "1985"]
[BlackElo "2188"]
[TimeControl "300"]
[EndTime "10:01:05 PDT"]
[Termination "Albul won by resignation"]

1. d4 {[%clk 0:04:56.8]} 1... f5 {[%clk 0:04:58.7]} 2. Nc3 {[%clk 0:04:51.8]}
2... d6 {[%clk 0:04:56.6]} 3. e4 {[%clk 0:04:49.7]} 3... g6 {[%clk 0:04:55.2]}
4. Bd3 {[%clk 0:04:42.7]} 4... fxe4 {[%clk 0:04:51.9]} 5. Nxe4 {[%clk
0:04:40.8]} 5... Nf6 {[%clk 0:04:50.5]} 6. Bf4 {[%clk 0:04:32.7]} 6... Bg7
{[%clk 0:04:44.3]} 7. Qe2 {[%clk 0:04:29.5]} 7... Nc6 {[%clk 0:04:41.2]} 8.
O-O-O {[%clk 0:04:26.4]} 8... Nxd4 {[%clk 0:04:38.5]} 9. Qe3 {[%clk 0:04:23.2]}
9... Nf5 {[%clk 0:04:30.9]} 10. Qe2 {[%clk 0:04:15.8]} 10... Nxe4 {[%clk
0:04:20.1]} 11. Bxe4 {[%clk 0:04:11.7]} 11... O-O {[%clk 0:04:14.2]} 12. Nh3
{[%clk 0:04:06.8]} 12... e5 {[%clk 0:04:10.9]} 13. Bg5 {[%clk 0:04:04.2]} 13...
Qd7 {[%clk 0:04:02.5]} 14. f4 {[%clk 0:03:44.7]} 14... h6 {[%clk 0:03:42.1]} 15.
Bxf5 {[%clk 0:03:39.9]} 15... Rxf5 {[%clk 0:03:40.3]} 16. Bh4 {[%clk 0:03:38.6]}
16... Qa4 {[%clk 0:03:36]} 17. Kb1 {[%clk 0:03:34.8]} 17... Be6 {[%clk
0:03:26.3]} 18. b3 {[%clk 0:03:29.7]} 18... Qc6 {[%clk 0:03:17.9]} 19. g4 {[%clk
0:03:25.6]} 19... Rf7 {[%clk 0:03:10]} 20. Rdf1 {[%clk 0:03:14.9]} 20... Raf8
{[%clk 0:03:04.1]} 21. f5 {[%clk 0:03:13.3]} 21... gxf5 {[%clk 0:03:00.9]} 22.
gxf5 {[%clk 0:03:11.3]} 22... Rxf5 {[%clk 0:02:58.6]} 23. Rxf5 {[%clk
0:03:07.8]} 23... Bxf5 {[%clk 0:02:57]} 24. Rg1 {[%clk 0:03:07.2]} 24... Bxh3
{[%clk 0:02:42.5]} 0-1

[Event "Live Chess"]
[Site "Chess.com"]
[Date "2023.05.20"]
[Round "-"]
[White "jennybobby44"]
[Black "EdenHazard8"]
[Result "0-1"]
[WhiteElo "1853"]
[BlackElo "2126"]
[TimeControl "300"]
[EndTime "10:01:18 PDT"]
[Termination "EdenHazard8 won by resignation"]

1. e4 {[%clk 0:04:59.2]} 1... c6 {[%clk 0:04:58.5]} 2. d4 {[%clk 0:04:55.3]}
2... d5 {[%clk 0:04:58.4]} 3. e5 {[%clk 0:04:54.6]} 3... c5 {[%clk 0:04:57.3]}
4. c3 {[%clk 0:04:52.6]} 4... Nc6 {[%clk 0:04:55.2]} 5. Nf3 {[%clk 0:04:46.9]}
5... Bg4 {[%clk 0:04:52.2]} 6. Be2 {[%clk 0:04:32.7]} 6... e6 {[%clk 0:04:48]}
7. h3 {[%clk 0:04:30.4]} 7... Bxf3 {[%clk 0:04:44.5]} 8. Bxf3 {[%clk 0:04:29.3]}
8... Qb6 {[%clk 0:04:43.4]} 9. dxc5 {[%clk 0:04:24.3]} 9... Bxc5 {[%clk
0:04:43.3]} 10. Qe2 {[%clk 0:04:12.6]} 10... Nh6 {[%clk 0:04:36.5]} 11. b4
{[%clk 0:04:06.6]} 11... Be7 {[%clk 0:04:33]} 12. Be3 {[%clk 0:03:43.4]} 12...
d4 {[%clk 0:04:30]} 13. Bxh6 {[%clk 0:03:27.9]} 13... gxh6 {[%clk 0:04:25.7]}
14. Bxc6+ {[%clk 0:03:16.8]} 14... Qxc6 {[%clk 0:04:25.6]} 15. O-O {[%clk
0:02:46.2]} 15... Rg8 {[%clk 0:04:22.1]} 16. f3 {[%clk 0:02:42.7]} 16... dxc3
{[%clk 0:04:21.1]} 17. b5 {[%clk 0:02:26]} 17... Qc5+ {[%clk 0:04:17.7]} 18. Kh2
{[%clk 0:02:22.2]} 18... Rd8 {[%clk 0:03:58.5]} 19. Rc1 {[%clk 0:02:19.2]} 19...
Bg5 {[%clk 0:03:52.7]} 20. Rxc3 {[%clk 0:02:01.6]} 20... Bf4+ {[%clk 0:03:50.5]}
21. Kh1 {[%clk 0:02:00.2]} 21... Qxe5 {[%clk 0:03:49.2]} 0-1

[Event "Live Chess"]
[Site "Chess.com"]
[Date "2023.05.20"]
[Round "-"]
[White "MarkLim1"]
[Black "flyingpuffins"]
[Result "1-0"]
[WhiteElo "1628"]
[BlackElo "1964"]
[TimeControl "300"]
[EndTime "10:01:27 PDT"]
[Termination "MarkLim1 won by checkmate"]

1. d4 {[%clk 0:04:56.8]} 1... d5 {[%clk 0:04:59]} 2. Nf3 {[%clk 0:04:55.8]} 2...
Nf6 {[%clk 0:04:58]} 3. c4 {[%clk 0:04:54.9]} 3... c6 {[%clk 0:04:57.1]} 4. cxd5
{[%clk 0:04:54]} 4... cxd5 {[%clk 0:04:54.1]} 5. Nc3 {[%clk 0:04:53.2]} 5... Nc6
{[%clk 0:04:52.7]} 6. Bf4 {[%clk 0:04:52.5]} 6... Bg4 {[%clk 0:04:50.4]} 7. Ne5
{[%clk 0:04:50.7]} 7... Qb6 {[%clk 0:04:47.3]} 8. Nxc6 {[%clk 0:04:39.5]} 8...
bxc6 {[%clk 0:04:34.3]} 9. a3 {[%clk 0:04:30.2]} 9... e6 {[%clk 0:04:13.4]} 10.
Na4 {[%clk 0:04:25.4]} 10... Qd8 {[%clk 0:03:52.5]} 11. h3 {[%clk 0:04:20.3]}
11... Bf5 {[%clk 0:03:51.1]} 12. e3 {[%clk 0:04:18.7]} 12... Bd6 {[%clk
0:03:43.6]} 13. Bxd6 {[%clk 0:04:17.1]} 13... Qxd6 {[%clk 0:03:43.5]} 14. Nc5
{[%clk 0:04:15.3]} 14... Ne4 {[%clk 0:03:36.1]} 15. Rc1 {[%clk 0:04:11.6]} 15...
Nxc5 {[%clk 0:03:32.4]} 16. Rxc5 {[%clk 0:04:09.7]} 16... O-O {[%clk 0:03:30.8]}
17. Be2 {[%clk 0:04:07]} 17... Rab8 {[%clk 0:03:27.6]} 18. Qc1 {[%clk 0:04:06]}
18... Rb6 {[%clk 0:03:11.3]} 19. O-O {[%clk 0:04:04.3]} 19... Rfb8 {[%clk
0:03:09.2]} 20. b4 {[%clk 0:04:03.4]} 20... a5 {[%clk 0:03:00.2]} 21. bxa5
{[%clk 0:04:00.2]} 21... Rb1 {[%clk 0:02:38.6]} 22. Qc3 {[%clk 0:03:50.6]} 22...
Rxf1+ {[%clk 0:02:35.4]} 23. Bxf1 {[%clk 0:03:49.5]} 23... h5 {[%clk 0:02:21.6]}
24. a6 {[%clk 0:03:40.6]} 24... Rb1 {[%clk 0:02:09.1]} 25. a7 {[%clk 0:03:36.7]}
25... Qc7 {[%clk 0:02:00.2]} 26. a8=Q+ {[%clk 0:03:34.8]} 26... Kh7 {[%clk
0:01:55.9]} 27. Qxc6 {[%clk 0:03:32.7]} 27... Qa7 {[%clk 0:01:50.4]} 28. Qc7
{[%clk 0:03:12.2]} 28... Qa6 {[%clk 0:01:45.5]} 29. Qc1 {[%clk 0:02:49.1]} 29...
Rxc1 {[%clk 0:01:43.3]} 30. Rxc1 {[%clk 0:02:46.9]} 30... Qxa3 {[%clk
0:01:42.6]} 31. Qc3 {[%clk 0:02:36.4]} 31... Qa7 {[%clk 0:01:35.2]} 32. Bd3
{[%clk 0:02:34.6]} 32... Bxd3 {[%clk 0:01:27.1]} 33. Qxd3+ {[%clk 0:02:33.3]}
33... g6 {[%clk 0:01:27]} 34. e4 {[%clk 0:02:25.2]} 34... dxe4 {[%clk
0:01:21.4]} 35. Qxe4 {[%clk 0:02:23.8]} 35... Qa3 {[%clk 0:01:20.6]} 36. Re1
{[%clk 0:02:21.8]} 36... Qb3 {[%clk 0:01:17.8]} 37. Re3 {[%clk 0:02:13.9]} 37...
Qd1+ {[%clk 0:01:07.6]} 38. Kh2 {[%clk 0:02:12.8]} 38... Qa1 {[%clk 0:00:58.7]}
39. Rf3 {[%clk 0:02:10.9]} 39... Kg7 {[%clk 0:00:53.8]} 40. Qe5+ {[%clk
0:02:05.5]} 40... Kg8 {[%clk 0:00:49.4]} 41. Qf6 {[%clk 0:01:59.3]} 41... Qa7
{[%clk 0:00:43.6]} 42. h4 {[%clk 0:01:54.3]} 42... Qc7+ {[%clk 0:00:41.5]} 43.
g3 {[%clk 0:01:51.9]} 43... Qd7 {[%clk 0:00:36.5]} 44. Ra3 {[%clk 0:01:42.5]}
44... Qc8 {[%clk 0:00:26.8]} 45. Ra7 {[%clk 0:01:33.9]} 45... Qe8 {[%clk
0:00:25.3]} 46. Qe7 {[%clk 0:01:21.6]} 46... Qxe7 {[%clk 0:00:23.1]} 47. Rxe7
{[%clk 0:01:20.2]} 47... Kg7 {[%clk 0:00:23]} 48. Kg2 {[%clk 0:01:18.3]} 48...
Kf6 {[%clk 0:00:22.7]} 49. Re8 {[%clk 0:01:16.5]} 49... Kg7 {[%clk 0:00:21.5]}
50. Kf3 {[%clk 0:01:15.4]} 50... Kf6 {[%clk 0:00:20.9]} 51. Kf4 {[%clk
0:01:13.4]} 51... Kg7 {[%clk 0:00:19.2]} 52. Re7 {[%clk 0:01:11.5]} 52... Kf6
{[%clk 0:00:18.3]} 53. Ra7 {[%clk 0:01:10.3]} 53... Kg7 {[%clk 0:00:15.6]} 54.
Ke5 {[%clk 0:01:06.3]} 54... g5 {[%clk 0:00:14.8]} 55. hxg5 {[%clk 0:01:04.9]}
55... h4 {[%clk 0:00:14.7]} 56. gxh4 {[%clk 0:01:03.8]} 56... Kg6 {[%clk
0:00:13.6]} 57. f4 {[%clk 0:01:01.5]} 57... f5 {[%clk 0:00:12.5]} 58. gxf6
{[%clk 0:01:00.3]} 58... Kh5 {[%clk 0:00:12.4]} 59. Kxe6 {[%clk 0:00:59.5]}
59... Kh6 {[%clk 0:00:11.7]} 60. f7 {[%clk 0:00:59.4]} 60... Kh7 {[%clk
0:00:11.6]} 61. f8=Q+ {[%clk 0:00:57.5]} 61... Kg6 {[%clk 0:00:10.8]} 62. Qf6+
{[%clk 0:00:55.7]} 62... Kh5 {[%clk 0:00:10.7]} 63. Qg5# {[%clk 0:00:53.7]} 1-0

[Event "Live Chess"]
[Site "Chess.com"]
[Date "2023.05.20"]
[Round "-"]
[White "AttackingSnowLeopard"]
[Black "vovanada"]
[Result "1-0"]
[WhiteElo "2037"]
[BlackElo "806"]
[TimeControl "300"]
[EndTime "10:01:27 PDT"]
[Termination "AttackingSnowLeopard won by checkmate"]

1. d4 {[%clk 0:04:57.7]} 1... d5 {[%clk 0:04:56.5]} 2. c4 {[%clk 0:04:57.3]}
2... dxc4 {[%clk 0:04:52.9]} 3. Nf3 {[%clk 0:04:56.6]} 3... Nf6 {[%clk
0:04:49.7]} 4. e3 {[%clk 0:04:56.2]} 4... e6 {[%clk 0:04:48.4]} 5. Bxc4 {[%clk
0:04:55.7]} 5... Bb4+ {[%clk 0:04:42.2]} 6. Nc3 {[%clk 0:04:53.9]} 6... O-O
{[%clk 0:04:37.9]} 7. O-O {[%clk 0:04:53.2]} 7... Nc6 {[%clk 0:04:34.6]} 8. a3
{[%clk 0:04:51.9]} 8... Bd6 {[%clk 0:04:27.8]} 9. e4 {[%clk 0:04:50.1]} 9... Ng4
{[%clk 0:04:20.6]} 10. e5 {[%clk 0:04:47.2]} 10... Be7 {[%clk 0:04:08.3]} 11. h3
{[%clk 0:04:46.7]} 11... Nh6 {[%clk 0:04:00.2]} 12. Bxh6 {[%clk 0:04:46.1]}
12... gxh6 {[%clk 0:03:57.2]} 13. Ne4 {[%clk 0:04:44.8]} 13... Bg5 {[%clk
0:03:46.6]} 14. Nfxg5 {[%clk 0:04:35.6]} 14... hxg5 {[%clk 0:03:39]} 15. Nf6+
{[%clk 0:04:35]} 15... Kh8 {[%clk 0:03:35.9]} 16. Qh5 {[%clk 0:04:34.1]} 16...
Qxf6 {[%clk 0:03:10]} 17. exf6 {[%clk 0:04:34]} 17... Nxd4 {[%clk 0:03:01]} 18.
Bd3 {[%clk 0:04:28.3]} 18... Nf5 {[%clk 0:02:47.6]} 19. Bxf5 {[%clk 0:04:26.5]}
19... exf5 {[%clk 0:02:47.5]} 20. Qh6 {[%clk 0:04:25.9]} 20... Rg8 {[%clk
0:02:44.3]} 21. Rfe1 {[%clk 0:04:24.8]} 21... Be6 {[%clk 0:02:40.1]} 22. Rxe6
{[%clk 0:04:23.7]} 22... fxe6 {[%clk 0:02:38.1]} 23. f7 {[%clk 0:04:23.4]} 23...
Rg7 {[%clk 0:02:32.4]} 24. Qxe6 {[%clk 0:04:21.1]} 24... Rf8 {[%clk 0:02:27.8]}
25. Qxf5 {[%clk 0:04:17.7]} 25... Rfxf7 {[%clk 0:02:26.3]} 26. Qc8+ {[%clk
0:04:16.6]} 26... Rg8 {[%clk 0:02:23.9]} 27. Qe6 {[%clk 0:04:15.7]} 27... Rfg7
{[%clk 0:02:21.6]} 28. Qe5 {[%clk 0:04:14.7]} 28... g4 {[%clk 0:02:17]} 29. hxg4
{[%clk 0:04:13]} 29... h6 {[%clk 0:02:13.5]} 30. g5 {[%clk 0:04:11.4]} 30...
hxg5 {[%clk 0:02:12]} 31. g3 {[%clk 0:04:08.3]} 31... g4 {[%clk 0:02:09.6]} 32.
Kg2 {[%clk 0:04:07.7]} 32... Kh7 {[%clk 0:02:04.4]} 33. Rh1+ {[%clk 0:04:06.8]}
33... Kg6 {[%clk 0:02:02.4]} 34. Qe6+ {[%clk 0:04:05.5]} 34... Kg5 {[%clk
0:02:00.9]} 35. Re1 {[%clk 0:03:53.9]} 35... c5 {[%clk 0:01:44.9]} 36. Re5#
{[%clk 0:03:52.4]} 1-0